Cogmind - Beta 13 X1 @@@ ROGUE MODE // 2023.11.15 @ 18:53:12 Player: Plexion Result: Destroyed by D-53 Grenadier with Mini Grenade Launcher Performance ------------- Evolutions (0) 0 Regions Visited (2) 400 Robots Destroyed (18) 90 Value Destroyed (381) 381 Prototype IDs (0) 0 Alien Tech Used (0) 0 Bonus (0) 0 TOTAL SCORE: 871 Bonus ------- None Cogmind --------- Core Integrity 0/250 Matter 225/300 Energy 87/100 System Corruption 0% Temperature Cool (2) Movement Treading (160) Location -10/Mines Parts ------- > --- POWER (1) -------- (None) > --- PROPULSION (2) --- Light Treads > --- UTILITY (2) ------ Medium Storage Unit > --- WEAPON (2) ------- (None) > --- INVENTORY (10) --- Light Treads Huge Storage Unit Targeting Computer Assault Rifle Light Assault Rifle Light Assault Rifle Mining Laser Peak State ------------ > --- POWER ------------ Ion Engine > --- PROPULSION ------- Light Treads Light Treads > --- UTILITY ---------- Medium Storage Unit Seismic Detector > --- WEAPON ----------- Assault Rifle Light Assault Rifle > --- INVENTORY -------- Light Treads Light Treads Light Treads Light Treads Aluminum Leg Huge Storage Unit Targeting Computer Light Assault Rifle Light Assault Rifle Grenade Launcher [Rating: 8] Favorites ----------- Power Ion Engine Engine Ion Engine Propulsion Light Treads Treads Light Treads Utility Medium Storage Unit Device Seismic Detector Storage Medium Storage Unit Weapon Light Assault Rifle Ballistic Gun Light Assault Rifle Launcher Grenade Launcher Build | -11 -10 -10 ------- Run | Jun Mat Min Slots Evolved . | . . . Power . | . . . Propulsion . | . . . Utility . | . . . Weapon . | . . . Parts Attached 14 | 7 3 4 Power 2 | 1 1 . Engine 2 | 1 1 . Core . | . . . Reactor . | . . . Propulsion 5 | 2 . 3 Treads 5 | 2 . 3 Leg . | . . . Wheel . | . . . Hover . | . . . Flight . | . . . Utility 3 | 1 2 . Device 1 | . 1 . Storage 2 | 1 1 . Processor . | . . . Hackware . | . . . Protection . | . . . Artifact . | . . . Weapon 4 | 3 . 1 Energy Gun . | . . . Energy Cannon . | . . . Ballistic Gun 3 | 3 . . Ballistic Cannon . | . . . Launcher 1 | . . 1 Special Weapon . | . . . Impact Weapon . | . . . Slashing Weapon . | . . . Piercing Weapon . | . . . Special Melee Weapon . | . . . Unidentified Prototypes . | . . . Parts Lost 9 | . 1 8 Power 2 | . 1 1 Propulsion 4 | . . 4 Utility 1 | . . 1 Weapon 2 | . . 2 Highest Loss Streak 8 | . 1 8 To Critical Strikes 1 | . . 1 Average Slot Usage (%) 90 | . 90 89 Engine 13 | . 14 12 Treads 27 | . 28 26 Device 5 | . 5 10 Storage 14 | . 14 14 Ballistic Gun 27 | . 28 21 Naked Turns . | . . . Heaviest Build 19 | 11 19 19 Greatest Support 40 | 40 40 40 Greatest Overweight (x) . | . . . Average Overweight (x) . | . . . Largest Inventory Capacity 10 | 8 10 10 Average Capacity 8 | 6 9 10 Most Carried 10 | 3 10 10 Average Carried 7 | 1 7 9 Final Capacity 10 | 8 10 10 Final Carried 10 | 3 10 7 Class Distribution -------------------- 100% | Mutant Dominant Class ---------------- Mutant | -10/Materials Mutant | -10/Mines Resources | -11 -10 -10 ----------- Run | Jun Mat Min Matter Collected 538 | 226 312 . Remotely . | . . . Salvage Created 575 | . 533 42 Parts 47 | . 47 . Haulers Intercepted 2 | . 2 . Recyclers Shooed . | . . . Parts Field Recycled . | . . . Retrieved Matter . | . . . Parts Self-Destructed . | . . . Prevented . | . . . Kills | -11 -10 -10 ------- Run | Jun Mat Min Combat Hostiles Destroyed 23 | . 14 9 Guns 14 | . 14 . AOE 9 | . . 9 Classes Destroyed 6 | . 5 1 Hauler 2 | . 2 . Operator 1 | . 1 . Watcher 1 | . 1 . Swarmer 6 | . 6 . Grunt 8 | . 8 . Assembled 9 | . . 9 Best Kill Streak 9 | . 5 9 Combat Bots Only 9 | . 5 9 Max Kills in Single Turn 4 | . 2 4 Gunslinging 1 | . 1 . Exploded 4 | . . 4 Melee . | . . . Uniques/NPCs Destroyed . | . . . Combat | -11 -10 -10 -------- Run | Jun Mat Min Damage Taken 1235 | . 475 760 Core 261 | . 107 154 Absorbed by Shields . | . . . Core Remaining (%) 100 | 100 . . Volleys Fired 73 | . 66 7 Largest 2 | . 2 1 Hottest 40 | . 40 30 Shots Fired 139 | . 132 7 Gun 132 | . 132 . Cannon . | . . . Launcher 7 | . . 7 Special . | . . . Kinetic 132 | . 132 . Thermal . | . . . Explosive 7 | . . 7 Electromagnetic . | . . . Robot Hit Streak 18 | . 18 9 Robot Miss Streak 5 | . 5 1 Penetration Max . | . . . Secondary Targets 2 | . 2 . Max Gunslinging Chain 1 | . 1 . Shots Hit Robots 95 | . 94 1 Core Hits 54 | . 37 17 Critical Kills . | . . . Critical Parts Destroyed . | . . . Critical Strikes . | . . . Melee Attacks . | . . . Impact . | . . . Slashing . | . . . Piercing . | . . . Sneak Attacks . | . . . Combat Hostiles . | . . . Follow-up Attacks . | . . . Damage Inflicted 1504 | 5 1065 434 Guns 1023 | . 1023 . Cannons . | . . . Explosions 434 | . . 434 Melee . | . . . Ramming 47 | 5 42 . Kinetic 1023 | . 1023 . Thermal . | . . . Explosive 434 | . . 434 Electromagnetic . | . . . Impact . | . . . Slashing . | . . . Piercing . | . . . Highest Corruption . | . . . Average Corruption . | . . . Corruption Purged . | . . . Corruption Blocked . | . . . Overload Shots . | . . . Overflow Damage . | . . . Projectiles . | . . . Explosions . | . . . Melee . | . . . Knockbacks 1 | 1 . . Impact 1 | 1 . . Kinetic . | . . . Secondary . | . . . Self-Inflicted Damage 24 | . . 24 Shots 1 | . . 1 Rammed 10 | 1 9 . Targets Rammed 10 | 1 9 . Kicked . | . . . Crushed . | . . . Highest Temperature 25 | . 18 25 Average Temperature 8 | . 7 15 Received Heat Transfer 244 | . 204 40 Siege Activations . | . . . Robots Corrupted . | . . . Combat Hostiles . | . . . Parts Fried . | . . . Impact Corruptions . | . . . Robots Melted . | . . . Combat Hostiles . | . . . Parts Melted . | . . . Heat Transferred . | . . . Parts Sabotaged . | . . . Parts Stolen . | . . . Parts Stripped . | . . . Power Chain Reactions . | . . . Missiles Intercepted . | . . . Alert | -11 -10 -10 ------- Run | Jun Mat Min Peak Influence 338 | . 338 26 Initial 19 | . . 19 Average 159 | . 177 16 Maximum Alert Level 1 | . 1 . Low Security (%) 65 | 100 61 100 Level 1 34 | . 38 . Level 2 . | . . . Level 3 . | . . . Level 4 . | . . . Level 5 . | . . . High Security . | . . . Max Security . | . . . Squads Dispatched 3 | . 3 . Investigation 1 | . 1 . Extermination . | . . . Reinforcement 2 | . 2 . Assault . | . . . Garrison . | . . . Intercept . | . . . Searches Triggered . | . . . Construction Impeded . | . . . Haulers Reinforced . | . . . Active Scanning Responses . | . . . Cargo Convoy Interrupts . | . . . Stealth | -11 -10 -10 --------- Run | Jun Mat Min Distress Signals 3 | . 3 . Communications Jammed . | . . . Distress Signals . | . . . Times Spotted 47 | . 30 17 Peak Tracking Total 11 | . 6 11 Tactical Retreats 3 | . 3 . Traps | -11 -10 -10 ------- Run | Jun Mat Min Traps Triggered . | . . . Indirectly . | . . . Trap Hack Attempts . | . . . Triggered . | . . . Disarmed . | . . . Reprogrammed . | . . . Reused . | . . . Traps Extracted . | . . . Installed . | . . . Triggered . | . . . Machines | -11 -10 -10 ---------- Run | Jun Mat Min Machines Disabled . | . . . Max in Single Turn . | . . . Machines Repaired . | . . . Machines Sabotaged . | . . . Overloaded Fab Kills . | . . . Hacking | -11 -10 -10 --------- Run | Jun Mat Min Machines Accessed 3 | . 3 . Terminals 3 | . 3 . Fabricators . | . . . Repair Stations . | . . . Recycling Units . | . . . Scanalyzers . | . . . Garrison Access . | . . . Total Hacks 9 | . 9 . Successful 2 | . 2 . Failed 6 | . 6 . Catastrophic 1 | . 1 . Database Lockouts 1 | . 1 . Manual 8 | . 8 . Terminals 9 | . 9 . Fabricators . | . . . Repair Stations . | . . . Recycling Units . | . . . Scanalyzers . | . . . Garrison Access . | . . . Terminal Hacks 2 | . 2 . Robot Analysis 1 | . 1 . Locate Traps 1 | . 1 . Fabricator Hacks . | . . . Repair Station Hacks . | . . . Recycling Unit Hacks . | . . . Scanalyzer . | . . . Garrison Access Hacks . | . . . Unauthorized Hacks . | . . . Terminals . | . . . Fabricators . | . . . Repair Stations . | . . . Recycling Units . | . . . Scanalyzers . | . . . Garrison Access . | . . . Data Cores Recovered . | . . . Used . | . . . Hacking Detections 3 | . 3 . Full Trace Events 1 | . 1 . Feedback Events . | . . . Feedback Blocked . | . . . Robot Schematics Acquired . | . . . Robots Built . | . . . Authchips . | . . . Time . | . . . Total Robot Build Rating . | . . . Part Schematics Acquired . | . . . Parts Built . | . . . Authchips . | . . . Time . | . . . Total Part Build Rating . | . . . Parts Repaired . | . . . Time . | . . . Parts Recycled . | . . . Recycled Matter . | . . . Retrieved Matter . | . . . Retrieved Components . | . . . Parts Scanalyzed . | . . . Part Schematics Acquired . | . . . Parts Damaged . | . . . Bothacking | -11 -10 -10 ------------ Run | Jun Mat Min Used RIF Installer . | . . . Robots Hacked . | . . . Non-combat . | . . . Combat . | . . . Robot Hacks Applied . | . . . Relay Couplers Released . | . . . Fabnet Peak Effective % . | . . . Robots Rewired . | . . . Allies Hacked . | . . . Hacks Repelled . | . . . Allies | -11 -10 -10 -------- Run | Jun Mat Min Total Allies . | . . . Largest Group . | . . . Highest-Rated Group . | . . . Highest-Rated Ally . | . . . Total Orders . | . . . Ally Attacks . | . . . Total Damage . | . . . Kills . | . . . Allies Corrupted . | . . . Allies Melted . | . . . Intel | -11 -10 -10 ------- Run | Jun Mat Min Robot Analysis Total 1 | . 1 . Derelict Logs Recovered . | . . . Drone Launches . | . . . Drone Recoveries . | . . . Exploration | -11 -10 -10 ------------- Run | Jun Mat Min Turns Passed 1469 | 54 1313 102 Spaces Moved 720 | 30 638 52 Core 6 | 6 . . Treads 714 | 24 638 52 Legs . | . . . Wheels . | . . . Hover . | . . . Flight . | . . . Fastest Speed 50 | 50 160 160 Average Speed 159 | 138 160 160 Slowest Speed 160 | 160 160 160 Overloaded Moves . | . . . Propulsion Burnouts . | . . . Robots Hopped . | . . . Cave-ins Triggered . | . . . Exploration Rate (%) 37 | 4 80 27 Regions Visited 2 Branch Regions 1 Pre-discovered Areas . | . . . Known Exits Taken . | . . . Unknown Exits Taken 2 | 1 1 . Scrap Searched 1 | . . 1 Spaces Dug . | . . . Terrain Destroyed 48 | . . 48 Melee . | . . . Projectile . | . . . AOE 48 | . . 48 Terrain Rammed . | . . . Walls Destroyed . | . . . Machines Disabled . | . . . Actions | -11 -10 -10 --------- Run | Jun Mat Min Total 910 | 39 806 65 Wait 81 | . 81 . Move 718 | 29 637 52 Hop . | . . . Pick Up 11 | 2 8 1 Fast Attach 8 | 6 2 . Attach 4 | . 1 3 Detach 1 | . 1 . Swap 2 | 1 . 1 Drop 2 | . 1 1 Fire 73 | . 66 7 Melee . | . . . Ram . | . . . Kick . | . . . Crush 10 | 1 9 . Escape Stasis . | . . . Rewire . | . . . Trap . | . . . Miscellaneous . | . . . Route ------- -11/Junkyard -10/Materials (discovered 4 exits: [*Mat x3] / [*Min]) -10/Mines History --------- Turn | Location | Event 9 | -11/Junkyard | Discovered new exit (range 16) 55 | -11/Junkyard | Entered Materials 303 | -10/Materials | Build established: Mutant 392 | -10/Materials | Discovered new exit (range 14) 406 | -10/Materials | Central database locked down 625 | -10/Materials | Discovered new exit (range 3) 1162 | -10/Materials | Discovered new exit (range 8) 1355 | -10/Materials | Discovered new exit (range 9) 1368 | -10/Materials | Entered Mines 1419 | -10/Mines | Assembled infested the area 1424 | -10/Mines | Assisted by a Guerilla fighting off Assembled 1446 | -10/Mines | Core integrity fell below 50% 1469 | -10/Mines | Core integrity fell below 20% 1470 | -10/Mines | Destroyed by D-53 Grenadier with Mini Grenade Launcher Last Messages --------------- 01447_ as-83335 destroyed. 01447_ as-31539 destroyed. 01447_ as-82822 destroyed. 01447_ as-33277 destroyed. 01449_ as-09116 destroyed. 01449_ Lgt. Treads destroyed. 01451_ Critical hit (Destroy). 01451_ Lgt. Treads destroyed. 01452_ Lgt. Assault Rifle destroyed. 01453_ as-38821 destroyed. 01453_ as-97358 destroyed. 01462_ The unstable cave ceiling collapses. 01462_ C-30 ARC bursts open, deploying its payload. 01462_ D-53 Grenadier unfolds itself. 01462_ Grenade Launcher destroyed. 01466_ Lgt. Treads destroyed. 01466_ Ion Engine destroyed. 01468_ The unstable cave ceiling collapses. 01470_ as-26434 destroyed. 01470_ Lgt. Treads destroyed. Map ----- +----------------------------------------------------+ | ??????????????????????????????????????????? | | ??????????????????????????????????????????? | | ??????????????????????????????????????????? | | ??????????????????????????????????????????? | | ??????????????????????????????????????????? | | ??????????????????????????????????????????? | | ??????????????????????????????????????????? | | ??????????????????????????????????????????? | | ??????????????????????????????????????????? | | ??????????????????????????????????????????? | | ????????????????????????????????????####??? | | ???????????????###?????????????????## ### | | ??????????????## ????????????????## | | ??????????????# ?????????????? | | ??????????????# ????????????? | | ?????????????## ????????????? | | ?????????????# #????????????# | | ?????????????# ##??????????# """ | | ?????????????# ##?????????# """ | | ?????????????? ##????????# """ | | ??????????????? #????????# | | ???????????????# #????????# | | ???????????#???# ##???????? ## | | ???????????#k### #????????# ### | | ???????????# ##???????# #?# | | ??????????????# % @ #?###???# #### | | ??????????????# d #?# ##?# ## ## | | ??????????????# d #?# ### = == | | ??????????????# % #?# !!% | | ??????????????# #### ###### | | ??????????????# ### ##????? | | ??????????????## ### ##?????? | | ???????????????# #### ##??????? | | ???????????????## # #?## ##??????? | | ????????????????# ###a ##?# #??????? | | ????????????????# #?# ### #??????? | | ????????????????## a # ?# #??????? | | ????????????????# a # ##?????? | | ???????????????? # # #?????? | | ????????????????# # #?????? | | ????????????????# ##?????? | | ???????????????? # ###??????? | | ????????????????# ### ##????????? | | ???????????????? ???## #?????????? | | ????????????????### ???# ##?????????? | | ??????????????????? ## ???# #??????????? | | ??????????????????? ?????? ??????????? | | ??????????????????? ??????## ?????????? | | ????????????????????????????## ????????? | | ?????????????????????????????? ???????? | +----------------------------------------------------+ Best States ------------- Heat Dissipation 25 Energy Generation 10 Energy Capacity 250 Matter Stores 300 Matter Capacity 300 Sight Range 16 Terrain Scan Density 10 Evasion (%) 40 Recoil Reduction 2 Item Schematics ----------------- None Robot Schematics ------------------ None Fabricated ------------ Nothing Alien Tech Used ----------------- None Achievements -------------- None Challenges ------------ None Game ------ Seed EncryptedAlphaCannon Manual? 0 Play Time 00:09:29 Cumulative 475.5 hours Start 2023.11.15 @ 18:41:24 End 2023.11.15 @ 18:53:12 Sessions 1 Manual Loads 0 Difficulty Rogue Special Mode None Game No. 563 Rogue 476 Adventurer 87 Explorer 0 Win Type - Total 27 Types 8/0/15/1/1/0/2/0/0 Lore% 90 Gallery% 93 Achievement% 76 Wizard Run 0 Options --------- ASCII 0 Keyboard 1 Movement Numpad Keybinds 0 Fullscreen 1 Font 18/SmallcapsGlow Map View 76x50 Tactical HUD 1 Map Filters NONE Filters NONE Steam 1 RUN: cf16aafb-e180-432f-baff-eb842c701dbe